Cogmind - Beta 13 @@@ ROGUE MODE // 2024.04.24 @ 18:48:13 Player: Sherlockkat Result: Destroyed by ZR-82W(R) with Subdweller Laser Performance ------------- Evolutions (0) 0 Regions Visited (3) 600 Robots Destroyed (18) 90 Value Destroyed (391) 391 Prototype IDs (0) 0 Alien Tech Used (0) 0 Bonus (0) 0 TOTAL SCORE: 1081 Bonus ------- None Cogmind --------- Core Integrity 0/250 Matter 249/300 Energy 69/100 System Corruption 0% Temperature Cool (6) Movement Treading (260) Ox1 Location -10/Subcaves Parts ------- > --- POWER (1) -------- (None) > --- PROPULSION (2) --- Spiked Treads > --- UTILITY (2) ------ Scrap Shield > --- WEAPON (2) ------- Light Assault Rifle Subdweller Machine Gun > --- INVENTORY (5) ---- Large Storage Unit Structural Scanner Subdweller Optics Mining Laser Peak State ------------ > --- POWER ------------ Ion Engine > --- PROPULSION ------- Light Treads Light Treads > --- UTILITY ---------- Medium Storage Unit Subdweller Optics > --- WEAPON ----------- Subdweller Machine Gun Makeshift Shrapnel Gun > --- INVENTORY -------- Small Storage Unit Large Storage Unit Structural Scanner Assault Rifle Light Assault Rifle Mining Laser Mining Laser [Rating: 12] Favorites ----------- Power Ion Engine Engine Ion Engine Propulsion Light Treads Treads Light Treads Utility Medium Storage Unit Device Subdweller Optics Storage Medium Storage Unit Protection Light Armor Plating Weapon Assault Rifle Energy Gun Small Laser Ballistic Gun Assault Rifle Special Weapon Mining Laser Build | -11 -10 -10 -10 ------- Run | Yrd Mat Min Sub Slots Evolved . | . . . . Power . | . . . . Propulsion . | . . . . Utility . | . . . . Weapon . | . . . . Parts Attached 25 | 6 2 2 15 Power 2 | 1 . 1 . Engine 2 | 1 . 1 . Core . | . . . . Reactor . | . . . . Propulsion 3 | 2 . . 1 Treads 3 | 2 . . 1 Leg . | . . . . Wheel . | . . . . Hover . | . . . . Flight . | . . . . Utility 5 | 1 2 . 2 Device 2 | 1 . . 1 Storage 1 | . 1 . . Processor . | . . . . Hackware . | . . . . Protection 2 | . 1 . 1 Artifact . | . . . . Weapon 15 | 2 . 1 12 Energy Gun 1 | 1 . . . Energy Cannon . | . . . . Ballistic Gun 10 | 1 . . 9 Ballistic Cannon . | . . . . Launcher . | . . . . Special Weapon 4 | . . 1 3 Impact Weapon . | . . . . Slashing Weapon . | . . . . Piercing Weapon . | . . . . Special Melee Weapon . | . . . . Unidentified Prototypes . | . . . . Parts Lost 9 | . 1 3 5 Power 2 | . . 1 1 Propulsion 2 | . . . 2 Utility 2 | . 1 1 . Weapon 3 | . . 1 2 Highest Loss Streak 3 | . 1 2 3 To Critical Strikes . | . . . . Average Slot Usage (%) 83 | . 96 89 69 Engine 11 | . 14 13 6 Treads 22 | . 28 28 13 Device 3 | . 2 . 7 Storage 10 | . 8 14 7 Protection 9 | . 13 9 5 Energy Gun 7 | . 14 9 . Ballistic Gun 17 | . 14 14 24 Special Weapon 1 | . . . 3 Naked Turns . | . . . . Heaviest Build 24 | 9 21 21 24 Greatest Support 40 | 40 40 40 40 Greatest Overweight (x) 7 | . . . 7 Average Overweight (x) . | . . . 1 Largest Inventory Capacity 10 | 5 10 10 10 Average Capacity 8 | 5 8 10 7 Most Carried 8 | 3 7 8 7 Average Carried 5 | 2 3 7 5 Final Capacity 10 | 5 10 10 5 Final Carried 7 | 3 7 6 4 Class Distribution -------------------- 100% | Mutant Dominant Class ---------------- Mutant | -10/Materials Mutant | -10/Mines Mutant | -10/Subcaves Resources | -11 -10 -10 -10 ----------- Run | Yrd Mat Min Sub Matter Collected 598 | 280 85 74 159 Remotely . | . . . . Salvage Created 665 | 147 169 255 94 Parts 41 | 10 6 19 6 Haulers Intercepted . | . . . . Recyclers Shooed . | . . . . Parts Field Recycled . | . . . . Retrieved Matter . | . . . . Parts Self-Destructed 3 | . . . 3 Prevented . | . . . . Kills | -11 -10 -10 -10 ------- Run | Yrd Mat Min Sub Combat Hostiles Destroyed 14 | . 4 7 3 Guns 14 | . 4 7 3 Classes Destroyed 7 | 2 1 3 1 Builder 1 | . . 1 . Tunneler 4 | 3 . 1 . Recycler 2 | 1 . 1 . Swarmer 3 | . . 3 . Grunt 5 | . 4 1 . Subdweller 3 | . . . 3 Assembled 3 | . . 3 . Best Kill Streak 3 | 2 2 3 1 Combat Bots Only 3 | . 2 3 1 Max Kills in Single Turn 1 | 1 1 1 1 Gunslinging . | . . . . Exploded . | . . . . Melee . | . . . . Uniques/NPCs Destroyed . | . . . . Combat | -11 -10 -10 -10 -------- Run | Yrd Mat Min Sub Hostile Shots Fired 84 | . 34 29 21 Missed 16 | . 4 9 3 Damage Taken 1157 | . 413 261 483 Core 256 | . 74 22 160 Absorbed by Shields . | . . . . Core Remaining (%) 100 | 100 . . . Volleys Fired 79 | 10 26 21 22 Largest 2 | 2 2 2 2 Hottest 100 | 60 60 100 100 Shots Fired 142 | 20 52 35 35 Gun 132 | 20 52 34 26 Cannon . | . . . . Launcher . | . . . . Special 10 | . . 1 9 Kinetic 82 | 10 26 20 26 Thermal 60 | 10 26 15 9 Explosive . | . . . . Electromagnetic . | . . . . Robot Hit Streak 14 | 4 11 8 14 Robot Miss Streak 3 | 2 2 3 1 Penetration Max . | . . . . Secondary Targets 1 | . 1 . . Max Gunslinging Chain 1 | . 1 . . Shots Hit Robots 93 | 12 35 21 25 Core Hits 38 | 4 11 15 8 Critical Kills . | . . . . Critical Parts Destroyed . | . . . . Critical Strikes . | . . . . Melee Attacks . | . . . . Impact . | . . . . Slashing . | . . . . Piercing . | . . . . Sneak Attacks . | . . . . Combat Hostiles . | . . . . Follow-up Attacks . | . . . . Damage Inflicted 1264 | 143 444 252 425 Guns 1264 | 143 444 252 425 Cannons . | . . . . Explosions . | . . . . Melee . | . . . . Ramming . | . . . . Kinetic 840 | 51 222 142 425 Thermal 424 | 92 222 110 . Explosive . | . . . . Electromagnetic . | . . . . Impact . | . . . . Slashing . | . . . . Piercing . | . . . . Highest Corruption . | . . . . Average Corruption . | . . . . Corruption Purged . | . . . . Corruption Blocked . | . . . . Overload Shots . | . . . . Overflow Damage . | . . . . Projectiles . | . . . . Explosions . | . . . . Melee . | . . . . Knockbacks . | . . . . Impact . | . . . . Kinetic . | . . . . Secondary . | . . . . Self-Inflicted Damage . | . . . . Shots . | . . . . Rammed . | . . . . Targets Rammed . | . . . . Kicked . | . . . . Crushed . | . . . . Highest Temperature 261 | . 261 70 . Average Temperature 72 | . 97 25 . Received Heat Transfer 344 | . 234 50 60 Siege Activations . | . . . . Robots Corrupted . | . . . . Combat Hostiles . | . . . . Parts Fried . | . . . . Impact Corruptions . | . . . . Robots Melted . | . . . . Combat Hostiles . | . . . . Parts Melted . | . . . . Heat Transferred 950 | 200 500 250 . Parts Sabotaged . | . . . . Parts Stolen . | . . . . Parts Stripped . | . . . . Power Chain Reactions . | . . . . Alert | -11 -10 -10 -10 ------- Run | Yrd Mat Min Sub Peak Influence 112 | 20 112 110 . Initial 13 | . 13 . . Average 48 | 8 45 63 . Maximum Alert Level . | . . . . Low Security (%) 100 | 100 100 100 . Level 1 . | . . . . Level 2 . | . . . . Level 3 . | . . . . Level 4 . | . . . . Level 5 . | . . . . High Security . | . . . . Max Security . | . . . . Squads Dispatched . | . . . . Investigation . | . . . . Extermination . | . . . . Reinforcement . | . . . . Assault . | . . . . Garrison . | . . . . Intercept . | . . . . Searches Triggered . | . . . . Construction Impeded . | . . . . Haulers Reinforced . | . . . . Active Scanning Responses . | . . . . Cargo Convoy Interrupts . | . . . . Stealth | -11 -10 -10 -10 --------- Run | Yrd Mat Min Sub Distress Signals 3 | . 1 2 . Communications Jammed . | . . . . Distress Signals . | . . . . Times Spotted 22 | . 7 11 4 Peak Tracking Total 11 | . 3 11 1 Tactical Retreats 1 | . . 1 . Traps | -11 -10 -10 -10 ------- Run | Yrd Mat Min Sub Traps Triggered 3 | . . . 3 Indirectly . | . . . . Trap Hack Attempts . | . . . . Triggered . | . . . . Disarmed . | . . . . Reprogrammed . | . . . . Reused . | . . . . Traps Extracted . | . . . . Installed . | . . . . Triggered . | . . . . Machines | -11 -10 -10 -10 ---------- Run | Yrd Mat Min Sub Machines Disabled . | . . . . Max in Single Turn . | . . . . Machines Repaired . | . . . . Machines Dismantled . | . . . . Machines Sabotaged . | . . . . Overloaded Fab Kills . | . . . . Hacking | -11 -10 -10 -10 --------- Run | Yrd Mat Min Sub Machines Accessed 1 | . 1 . . Terminals 1 | . 1 . . Fabricators . | . . . . Repair Stations . | . . . . Recycling Units . | . . . . Scanalyzers . | . . . . Garrison Access . | . . . . Total Hacks 2 | . 2 . . Successful 1 | . 1 . . Failed 1 | . 1 . . Catastrophic . | . . . . Database Lockouts . | . . . . Manual 2 | . 2 . . Terminals 2 | . 2 . . Fabricators . | . . . . Repair Stations . | . . . . Recycling Units . | . . . . Scanalyzers . | . . . . Garrison Access . | . . . . Terminal Hacks 1 | . 1 . . Branch Access Points 1 | . 1 . . Fabricator Hacks . | . . . . Repair Station Hacks . | . . . . Recycling Unit Hacks . | . . . . Scanalyzer . | . . . . Garrison Access Hacks . | . . . . Unauthorized Hacks . | . . . . Terminals . | . . . . Fabricators . | . . . . Repair Stations . | . . . . Recycling Units . | . . . . Scanalyzers . | . . . . Garrison Access . | . . . . Data Cores Recovered . | . . . . Used . | . . . . Hacking Detections 1 | . 1 . . Full Trace Events . | . . . . Feedback Events . | . . . . Feedback Blocked . | . . . . Robot Schematics Acquired . | . . . . Robots Built . | . . . . Authchips . | . . . . Time . | . . . . Total Robot Build Rating . | . . . . Part Schematics Acquired . | . . . . Parts Built . | . . . . Authchips . | . . . . Time . | . . . . Total Part Build Rating . | . . . . Parts Repaired . | . . . . Time . | . . . . Parts Recycled . | . . . . Recycled Matter . | . . . . Retrieved Matter . | . . . . Retrieved Components . | . . . . Parts Scanalyzed . | . . . . Part Schematics Acquired . | . . . . Parts Damaged . | . . . . Bothacking | -11 -10 -10 -10 ------------ Run | Yrd Mat Min Sub Used RIF Installer . | . . . . Robots Hacked . | . . . . Non-combat . | . . . . Combat . | . . . . Robot Hacks Applied . | . . . . Relay Couplers Released . | . . . . Fabnet Peak Effective % . | . . . . Robots Rewired . | . . . . Allies Hacked . | . . . . Hacks Repelled . | . . . . Allies | -11 -10 -10 -10 -------- Run | Yrd Mat Min Sub Total Allies . | . . . . Largest Group . | . . . . Highest-Rated Group . | . . . . Highest-Rated Ally . | . . . . Total Orders . | . . . . Ally Attacks . | . . . . Total Damage . | . . . . Kills . | . . . . Allies Corrupted . | . . . . Allies Melted . | . . . . Intel | -11 -10 -10 -10 ------- Run | Yrd Mat Min Sub Robot Analysis Total . | . . . . Derelict Logs Recovered 1 | . . 1 . Drone Launches . | . . . . Drone Recoveries . | . . . . Exploration | -11 -10 -10 -10 ------------- Run | Yrd Mat Min Sub Turns Passed 1734 | 156 463 519 596 Spaces Moved 805 | 75 231 286 213 Core 34 | 4 . . 30 Treads 771 | 71 231 286 183 Legs . | . . . . Wheels . | . . . . Hover . | . . . . Flight . | . . . . Fastest Speed 50 | 50 160 160 150 Average Speed 175 | 154 160 160 220 Slowest Speed 400 | 160 160 160 400 Overloaded Moves . | . . . . Propulsion Burnouts . | . . . . Robots Hopped . | . . . . Cave-ins Triggered . | . . . . Exploration Rate (%) 28 | 5 38 55 15 Regions Visited 3 Branch Regions 2 Pre-discovered Areas . | . . . . Known Exits Taken 1 | . 1 . . Unknown Exits Taken 2 | 1 . 1 . Scrap Searched 4 | . . . 4 Spaces Dug 4 | . . . 4 Terrain Destroyed 4 | . . . 4 Melee . | . . . . Projectile 4 | . . . 4 AOE . | . . . . Terrain Rammed . | . . . . Walls Destroyed . | . . . . Machines Disabled . | . . . . Actions | -11 -10 -10 -10 --------- Run | Yrd Mat Min Sub Total 958 | 93 272 311 282 Wait 37 | . 10 2 25 Move 802 | 74 230 285 213 Hop . | . . . . Pick Up 9 | 3 4 1 1 Fast Attach 11 | 6 2 . 3 Attach 5 | . . 2 3 Detach 3 | . . . 3 Swap 9 | . . . 9 Drop 3 | . . . 3 Fire 79 | 10 26 21 22 Melee . | . . . . Ram . | . . . . Kick . | . . . . Crush . | . . . . Escape Stasis . | . . . . Rewire . | . . . . Trap . | . . . . Miscellaneous . | . . . . Route ------- -11/Scrapyard -10/Materials (discovered 2 exits: *Min x2) -10/Mines (discovered 2 exits: [*Mat] / [*Sub]) -10/Subcaves History --------- Turn | Location | Event 10 | -11/Scrapyard | Discovered new exit (range 16) 157 | -11/Scrapyard | Entered Materials 302 | -10/Materials | Build established: Mutant 384 | -10/Materials | Identified exit to Mines 620 | -10/Materials | Entered Mines 669 | -10/Mines | Learned 8 Materials zone layouts 695 | -10/Mines | A weapon hastily lodged in a ceiling crevice suddenly fell to the ground 768 | -10/Mines | Discovered new exit (range 10) 914 | -10/Mines | Assembled infested the area 919 | -10/Mines | Assisted by a Guerilla fighting off Assembled 1132 | -10/Mines | Discovered new exit (range 4) 1139 | -10/Mines | Entered Subcaves 1213 | -10/Subcaves | Core integrity fell below 50% 1404 | -10/Subcaves | Shifting Twisted Machinery released Scrap Shield 1424 | -10/Subcaves | Core integrity fell below 20% 1464 | -10/Subcaves | Lost 3 parts (1p1n1w) 1474 | -10/Subcaves | Shifting Twisted Machinery released Flamer 1708 | -10/Subcaves | Disturbed a concealed Subdweller 1735 | -10/Subcaves | Destroyed by ZR-82W(R) with Subdweller Laser Last Messages --------------- 01533_ Found Flamer. 01533_ Found Mak. Light Armor Plating. 01533_ Found 15 Matter. 01534_ Acquired 12 matter. 01537_ Searching scrap... 01537_ Found Scrap Shield. 01537_ Found Spk. Treads. 01537_ Found 18 Matter. 01545_ Acquired Spk. Treads. 01547_ Acquired 3 matter. 01549_ Acquired 7 matter. 01692_ Searching scrap... 01692_ Found Mak. Flight Unit. 01692_ Found 18 Matter. 01708_ ZR-82W(R) angrily emerges from the Twisted Machinery. 01715_ Critical hit (Destroy). 01722_ ZR-82W(R) affixes Scrap Shield Fragment to Scrap Shield. 01724_ Assault Rifle destroyed. Map ----- +----------------------------------------------------+ | ?????????????????????????????????????????????????? | | ?????????????????????????????????????????????????? | | ?????????????????????????????????????????????????? | | ?????????????????????????????????????????????????? | | ?????????????????????????????????????????????????? | | ?????????????????????????????????????????????????? | | ?????????????????????????????????????????????????? | | ?????????????????????????????????????????????????? | | ?????????????????????????????????????????????????? | | ?????????????????????????????????????????????????? | | ?????????????????????????????????????????????????? | | ?????????????????????????????????????????????????? | | ?????????????????????????#???????????????????????? | | ????????????????????????? #??????????????????????? | | ????????????????????????? ##????????????????????? | | ????????????????????????? #????????????????????? | | ????????????????????????? ##???????????????????? | | ????????????????????????? #???????????????????? | | ????????????????????????? #???????????????????? | | ??????????????????######## #???????????????????? | | ????????????????### # #????????????????????? | | ????????????????# ### ##???????????????????? | | ????????????????# ##<# = #???????????????????? | | ????????????????# ##<$ # #% ##???????????????????? | | ?????"??????????# #$$$< R# #???????????????????? | | ?????#" ##???##?# #"$"?# @ ##???????????????????? | | ?????# ### ## ##""?# #????????????????????? | | ??????# # #### #????????????????????? | | ??????# # ##????????????????????? | | ????????????## #?????????????????????? | | ??????# #### #?????????????????????? | | ??????# #########?????????????????????? | | ??????# ## #?????????????????????????????? | | ??????## ??# ##?????????????????????????????? | | ???????# ??## ##?####??????###???????????????? | | ???????# ## ### ##????# ##??????????????? | | ???????# ##??? ##?????????????? | | ???????# #?## ##????????????? | | ???????# ### #????????????? | | ???????# ### #?????????????? | | ???????????# ## #?????????????? | | ??????????# ### ##????????????? | | ??????????# ## ##?# ##???????????? | | ?????????# ### ######??# ##??????????? | | ????????# #??####?####### #??????????? | | ???????# ????????#"%## #??????????? | | ???????# ?????????# ### ### ##????###???? | | ???????# ?????????#!##"#" #?# ##???? ????? | | ???????# ??????????#!# ### ##?? ????? | | ???????? ???????????#"|&##" ## ## ??????? | +----------------------------------------------------+ Best States ------------- Heat Dissipation 25 Energy Generation 10 Energy Capacity 250 Matter Stores 300 Matter Capacity 300 Sight Range 21 Terrain Scan Density 10 Armor Coverage 800 Evasion (%) 40 Recoil Reduction 2 Item Schematics ----------------- None Robot Schematics ------------------ None Fabricated ------------ Nothing Alien Tech Used ----------------- None Achievements -------------- None Challenges ------------ None Game ------ Seed LayeredThermalCycler Manual? 0 Play Time 00:15:18 Cumulative 383.2 hours Start 2024.04.24 @ 18:34:39 End 2024.04.24 @ 18:48:13 Sessions 1 Manual Loads 0 Difficulty Rogue Special Mode None Game No. 443 Rogue 443 Adventurer 0 Explorer 0 Win Type - Total 32 Types 21/3/7/1/0/0/0/0/0 Lore% 68 Gallery% 77 Achievement% 59 Wizard Run 0 Options --------- Layout 1 ASCII 1 Keyboard 1 Movement Numpad Keybinds 0 Fullscreen 1 Font 24/Smallcaps Map View 50x35 Zoom Use 0% Tactical HUD 1 Map Filters NONE Filters NONE Steam 1 RUN: f4738422-a661-47d6-b41f-58c0d4aa1a83